bitfinex/quotes_SOLUSD_20241029
["timestamp","ask_amount","ask_price","bid_price","bid_amount"]
[1730164430069,5.82265116,178.21,178.16,17.0368429]
[1730164430529,22.6484429,178.2,178.15,17.0368429]
[1730164431936,17.0368429,178.19,178.13,22.6506429]
[1730164432136,17.0368429,178.19,178.14,17.0368429]
[1730164432546,17.0368429,178.17,178.12,31.0722429]
[1730164432928,17.0368429,178.18,178.13,17.0368429]
[1730164433457,17.0368429,178.17,178.12,36.6863429]
[1730164433660,17.0368429,178.18,178.12,36.6863429]
[1730164434256,17.0368429,178.18,178.13,17.0368429]
[1730164434434,22.6493429,178.18,178.13,17.0368429]
[1730164435258,22.6493429,178.18,178.12,36.6863429]
[1730164436153,17.0368429,178.15,178.1,17.0368429]
[1730164437358,22.6502429,178.15,178.1,17.0368429]
[1730164440357,17.0368429,178.13,178.08,17.0368429]
[1730164441663,22.6509429,178.13,178.08,17.0368429]
[1730164442966,17.0368429,178.11,178.06,17.0368429]
[1730164443164,17.0368429,178.12,178.06,17.0368429]
[1730164443548,5.6141,178.13,178.08,17.0368429]
[1730164443742,5.6141,178.13,178.09,17.0368429]
[1730164444986,17.0368429,178.12,178.06,17.0368429]
[1730164445471,17.0368429,178.12,178.07,17.0368429]
[1730164445764,17.0368429,178.11,178.05,36.6940429]
[1730164446268,17.0368429,178.1,178.05,36.6940429]
[1730164446563,22.6515429,178.11,178.05,36.6940429]
[1730164449143,14.0331,178.15,178.08,17.0368429]
[1730164449144,17.0368429,178.13,178.08,17.0368429]
[1730164450163,5.8076268,178.12,178.08,17.0368429]
[1730164450364,5.8076268,178.12,178.11,17.0368429]
[1730164450573,16.51852059,178.17,178.11,10.90582059]
[1730164450750,22.3261474,178.17,178.11,10.90582059]
[1730164451169,5.80762681,178.17,178.14,10.90582059]
[1730164451751,5.80762681,178.17,178.13,10.90582059]
[1730164452165,11.42032681,178.17,178.12,10.90582059]
[1730164452568,11.42032681,178.17,178.12,17.03820561]
[1730164452960,28.45853242,178.17,178.12,17.03820561]
[1730164453369,11.42032681,178.17,178.12,17.03820561]
[1730164453666,11.42032681,178.17,178.13,17.03820561]
[1730164454668,11.42032681,178.17,178.12,17.03820561]
[1730164455768,11.42032681,178.17,178.12,22.65230561]
[1730164456272,17.03820561,178.14,178.09,17.03820561]
[1730164456469,17.03820561,178.14,178.1,3.91785135]
[1730164456660,17.03820561,178.15,178.09,17.03820561]
[1730164457060,17.03820561,178.14,178.09,3.92005267]
[1730164457261,5.6138,178.13,178.08,22.65330561]
[1730164457667,22.65200561,178.13,178.08,17.03820561]
[1730164458057,5.6138,178.13,178.08,17.03820561]
[1730164458252,22.65110561,178.16,178.1,17.03820561]
[1730164458459,20.0,178.15,178.1,17.03820561]
[1730164459459,5.6135,178.14,178.1,17.03820561]
[1730164460660,22.65170561,178.14,178.09,17.03820561]
[1730164461673,22.65170561,178.14,178.08,31.07680561]
[1730164461883,22.65170561,178.14,178.09,3.92550889]
[1730164462057,22.65170561,178.14,178.08,31.07680561]
[1730164462251,22.65170561,178.14,178.09,20.96339878]
[1730164462457,5.6135,178.14,178.1,3.92519317]
[1730164462653,5.6135,178.14,178.09,17.03820561]
[1730164462881,5.6135,178.14,178.1,3.92563375]
[1730164463084,5.6135,178.14,178.09,17.03820561]
[1730164463262,5.6135,178.14,178.1,3.92579152]
[1730164463463,5.6135,178.14,178.1,17.03820561]
[1730164464082,5.6135,178.14,178.09,22.65330561]
[1730164464282,5.6135,178.14,178.1,3.92626153]
[1730164464461,5.6135,178.14,178.09,22.65330561]
[1730164464661,5.6135,178.14,178.1,3.92661329]
[1730164464868,22.65170561,178.14,178.09,17.03820561]
[1730164465061,22.65170561,178.14,178.1,3.92662108]
[1730164465281,22.65170561,178.14,178.09,17.03820561]
[1730164465485,22.65170561,178.14,178.1,3.92718]
[1730164465775,22.65170561,178.14,178.09,17.03820561]
[1730164465982,22.65170561,178.14,178.1,3.92725597]
[1730164466180,22.65170561,178.14,178.09,17.03820561]
[1730164466374,5.6135,178.14,178.1,3.92750925]
[1730164466576,5.6135,178.14,178.11,3.92750925]
[1730164466763,5.6135,178.14,178.09,17.03820561]
[1730164466964,5.6135,178.14,178.1,3.92733333]
[1730164467175,5.6135,178.14,178.11,3.92733333]
[1730164467482,5.6135,178.14,178.09,17.03820561]
[1730164467483,5.80907198,178.15,178.13,17.03820561]
[1730164468785,5.80907198,178.15,178.12,17.03820561]
[1730164468990,5.80907198,178.15,178.13,3.92651237]
[1730164469166,5.80907198,178.15,178.12,17.03820561]
[1730164469368,5.80907198,178.15,178.13,3.92664722]
[1730164469687,5.80907198,178.15,178.12,22.65230561]
[1730164469866,5.80907198,178.15,178.13,3.92652823]
[1730164470064,5.80907198,178.15,178.12,22.65230561]
[1730164470263,5.80907198,178.15,178.13,3.92651023]
[1730164470470,5.80907198,178.15,178.12,22.65230561]
[1730164470778,5.80907198,178.15,178.13,3.92678208]
[1730164470978,5.80907198,178.15,178.12,22.65230561]
[1730164471172,5.80907198,178.15,178.13,3.92675122]
[1730164471487,5.80907198,178.15,178.12,22.65230561]
[1730164471789,5.80907198,178.15,178.13,3.92719215]
[1730164471967,5.80907198,178.15,178.12,22.65230561]
[1730164472172,5.80907198,178.15,178.13,3.9274261]
[1730164472370,5.80907198,178.15,178.12,22.65230561]
[1730164472574,5.80907198,178.15,178.13,3.92755665]
[1730164472763,11.42227198,178.15,178.1,22.65280561]
[1730164472963,11.42227198,178.15,178.11,3.9271359]
[1730164473280,11.42227198,178.15,178.12,3.9271359]
[1730164473479,11.42227198,178.15,178.13,3.9271359]
[1730164473480,5.80907198,178.15,178.13,3.9271359]
[1730164473675,5.80907198,178.15,178.12,17.03820561]
[1730164473886,5.80907198,178.15,178.13,3.92758239]
[1730164474188,5.80907198,178.15,178.12,17.03820561]
[1730164474384,5.80907198,178.15,178.13,3.92750227]
[1730164474568,5.80907198,178.15,178.12,10.90490011]
[1730164474764,5.80907198,178.15,178.13,3.92771039]
[1730164474965,5.80907198,178.15,178.11,10.90490011]
[1730164475183,22.32737209,178.15,178.12,3.92765895]
[1730164475384,22.32737209,178.15,178.13,3.92765895]
[1730164475689,10.90490011,178.14,178.08,26.62851597]
[1730164475862,11.42247198,178.15,178.09,3.92753373]
[1730164476068,22.32737209,178.15,178.1,14.83243384]
[1730164476376,22.32737209,178.15,178.11,3.92753373]
[1730164476579,22.32737209,178.15,178.12,3.92753373]
[1730164476580,11.42247198,178.15,178.12,3.92753373]
[1730164476787,11.42247198,178.15,178.11,10.90490011]
[1730164476994,11.42247198,178.15,178.12,3.92758201]
[1730164477179,11.42247198,178.15,178.13,3.92758201]
[1730164477377,11.42247198,178.15,178.11,10.90490011]
[1730164477590,11.42247198,178.15,178.12,3.92771209]
[1730164477781,11.42247198,178.15,178.13,3.92771209]
[1730164478091,11.42247198,178.15,178.1,16.51960011]
[1730164478269,11.42247198,178.15,178.11,3.92782927]
[1730164478469,11.42247198,178.15,178.12,3.92782927]
[1730164478670,11.42247198,178.15,178.13,3.92782927]
[1730164478876,11.42247198,178.15,178.11,10.90490011]
[1730164479082,11.42247198,178.15,178.12,3.92778925]
[1730164479395,11.42247198,178.15,178.13,3.92778925]
[1730164479585,11.42247198,178.15,178.11,10.90490011]
[1730164479780,11.42247198,178.15,178.12,3.92819122]
[1730164479984,11.42247198,178.15,178.11,10.90490011]
[1730164480191,11.42247198,178.15,178.12,3.92833813]
[1730164480491,11.42247198,178.15,178.11,10.90490011]
[1730164480492,11.42247198,178.15,178.13,3.92851542]
[1730164480669,11.42247198,178.15,178.11,10.90490011]
[1730164480870,5.80907198,178.15,178.12,3.92852727]
[1730164481086,5.80907198,178.15,178.11,16.51930011]
[1730164481289,5.80907198,178.15,178.12,3.92840748]
[1730164481485,5.80907198,178.15,178.09,5.50393988]
[1730164481486,11.42227198,178.15,178.13,3.92840748]
[1730164481786,11.42227198,178.15,178.11,10.90490011]
[1730164481992,11.42227198,178.15,178.12,3.92786203]
[1730164482185,11.42227198,178.15,178.13,3.92786203]
[1730164482387,11.42227198,178.15,178.11,10.90490011]
[1730164482598,11.42227198,178.15,178.12,3.92818268]
[1730164482792,11.42227198,178.15,178.13,3.92818268]
[1730164482988,11.42227198,178.15,178.11,10.90490011]
[1730164483170,11.42227198,178.15,178.12,3.92830811]
[1730164483367,11.42227198,178.15,178.13,3.92830811]
[1730164483572,5.80907198,178.15,178.12,16.51880011]
[1730164483790,5.80907198,178.15,178.13,3.9279661]
[1730164483998,5.80907198,178.15,178.14,3.9279661]
[1730164484374,5.80907198,178.15,178.12,5.6139]
[1730164484575,5.80907198,178.15,178.13,3.92788253]
[1730164484777,5.80907198,178.15,178.11,24.94090011]
[1730164485101,5.80907198,178.15,178.12,3.92773425]
[1730164485287,5.80907198,178.15,178.13,3.92773425]
[1730164485476,5.80907198,178.15,178.11,30.55540011]
[1730164485679,5.80907198,178.15,178.12,3.92855542]
[1730164485996,5.80907198,178.15,178.13,3.92855542]
[1730164486189,5.80907198,178.15,178.11,19.6505]
[1730164486396,5.80907198,178.15,178.12,3.92848891]
[1730164486583,5.80907198,178.15,178.13,3.92848891]
[1730164486783,5.80907198,178.15,178.11,30.55540011]
[1730164487097,5.80907198,178.15,178.12,3.9286789]
[1730164487295,5.80907198,178.15,178.13,3.9286789]
[1730164487498,5.80907198,178.15,178.11,30.55540011]
[1730164487702,5.80907198,178.15,178.12,14.83358728]
[1730164488000,5.80907198,178.15,178.13,3.92868717]
[1730164488199,5.80907198,178.15,178.12,10.90490011]
[1730164488404,5.80907198,178.15,178.13,3.92845683]
[1730164488701,5.80907198,178.15,178.14,3.92845683]
[1730164489101,5.80907198,178.15,178.11,24.94090011]
[1730164489400,5.80907198,178.15,178.12,3.92918418]
[1730164489606,5.80907198,178.15,178.13,3.92918418]
[1730164489781,5.80907198,178.15,178.11,24.94090011]
[1730164489979,5.80907198,178.15,178.12,3.92947089]
[1730164490179,5.80907198,178.15,178.13,3.92947089]
[1730164490382,5.80907198,178.15,178.11,24.94090011]
[1730164490580,5.80907198,178.15,178.12,3.93001539]
[1730164490794,5.80907198,178.15,178.13,3.93001539]
[1730164490981,5.80907198,178.15,178.11,24.94090011]
[1730164491181,5.80907198,178.15,178.12,3.93086908]
[1730164491406,5.80907198,178.15,178.13,3.93086908]
[1730164491597,5.80907198,178.15,178.11,24.94090011]
[1730164491781,5.80907198,178.15,178.12,3.93117112]
[1730164491981,5.80907198,178.15,178.13,3.93117112]
[1730164492182,5.80907198,178.15,178.11,24.94090011]
[1730164492376,5.80907198,178.15,178.12,3.93084172]
[1730164492587,5.80907198,178.15,178.13,3.93084172]
[1730164492803,5.6135,178.14,178.09,10.22722845]
[1730164493105,5.6135,178.14,178.1,10.90490011]
[1730164493282,5.6135,178.14,178.11,3.93126011]
[1730164493485,5.6135,178.14,178.12,3.93126011]
[1730164493685,5.6135,178.14,178.13,3.93126011]
[1730164496706,5.6135,178.14,178.1,5.50891897]
[1730164496895,5.6135,178.14,178.11,3.93278338]
[1730164497216,5.6135,178.14,178.12,3.93278338]
[1730164497396,5.6135,178.14,178.13,3.93278338]
[1730164498709,16.51840011,178.14,178.13,3.93278338]
[1730164500095,5.80907198,178.15,178.13,3.93278338]
[1730164500408,22.9026,178.23,178.14,14.83768349]
[1730164500714,5.611,178.22,178.18,10.90490011]
[1730164500904,5.611,178.22,178.17,10.90490011]
[1730164501102,16.51590011,178.22,178.17,10.90490011]
[1730164501298,10.90490011,178.21,178.18,3.92840583]
[1730164501493,16.51650011,178.21,178.16,10.90490011]
[1730164501700,10.90490011,178.2,178.17,3.92803847]
[1730164501904,10.90490011,178.2,178.15,10.90490011]
[1730164502199,16.51650011,178.21,178.16,14.83229486]
[1730164502410,16.51650011,178.21,178.17,3.92739475]
[1730164502593,16.51650011,178.21,178.16,10.90490011]
[1730164502795,16.51650011,178.21,178.17,3.92681897]
[1730164502988,16.51650011,178.21,178.16,10.90490011]
[1730164503190,5.6116,178.21,178.17,14.8317592]
[1730164503512,5.80060291,178.2,178.17,10.90490011]
[1730164505591,22.9026,178.23,178.19,10.90490011]
[1730164505790,127.64220044,178.29,178.14,19.6474]
[1730164505791,22.5483,178.27,178.2,10.90490011]
[1730164506012,16.70102093,178.24,178.19,10.90490011]
[1730164506320,10.90490011,178.24,178.19,10.90490011]
[1730164506614,16.70116552,178.24,178.19,10.90490011]
[1730164506992,22.31166552,178.24,178.19,10.90490011]
[1730164507310,22.31166552,178.24,178.17,14.0311]
[1730164507311,10.90490011,178.22,178.17,14.0311]
[1730164507511,10.90490011,178.21,178.15,5.6131]
[1730164507693,10.90490011,178.23,178.17,10.90490011]
[1730164508488,10.90490011,178.22,178.17,10.90490011]
[1730164508694,5.6113,178.21,178.17,10.90490011]
[1730164510291,10.90490011,178.23,178.17,10.90490011]
[1730164510596,5.611,178.22,178.17,10.90490011]
[1730164511616,5.611,178.22,178.15,24.93800011]
[1730164511617,10.90490011,178.21,178.15,24.93800011]
[1730164511799,10.90490011,178.2,178.16,3.92167577]
[1730164512113,10.90490011,178.2,178.15,14.0331]
[1730164512307,10.90490011,178.2,178.16,3.92176458]
[1730164512513,10.90490011,178.2,178.15,14.0331]
[1730164512716,16.51670011,178.2,178.16,3.9218473]
[1730164512910,5.6118,178.2,178.16,10.90490011]
[1730164516021,16.51670011,178.2,178.15,24.93800011]
[1730164516409,5.6118,178.2,178.16,10.90490011]
[1730164517117,5.6118,178.2,178.17,10.90490011]
[1730164517333,5.7952202,178.21,178.19,10.90490011]
[1730164517510,5.6104,178.24,178.2,10.90490011]
[1730164517704,11.40671237,178.24,178.2,10.90490011]
[1730164518502,5.79631237,178.24,178.22,10.90490011]
[1730164518817,5.79631237,178.24,178.23,2.01348979]
[1730164518818,16.70155792,178.24,178.23,2.01348979]
[1730164519024,16.70155792,178.24,178.18,14.82517251]
[1730164519025,16.70155792,178.24,178.18,10.90490011]
[1730164519234,22.31215792,178.24,178.18,16.51700011]
[1730164519410,22.31215792,178.24,178.19,10.90490011]
[1730164520021,10.90490011,178.23,178.17,16.51740011]
[1730164520215,10.90490011,178.22,178.17,10.90490011]
[1730164520929,10.90490011,178.2,178.15,14.0331]
[1730164521102,10.90490011,178.2,178.14,16.51840011]
[1730164521424,5.6119,178.19,178.15,14.82695665]
[1730164521730,5.6119,178.19,178.16,10.90490011]
[1730164521910,10.90490011,178.22,178.16,10.90490011]
[1730164522233,5.6107,178.23,178.19,10.90490011]
[1730164525231,5.6107,178.23,178.18,10.90490011]
[1730164525416,5.6107,178.23,178.19,3.91974149]
[1730164525723,5.6107,178.23,178.18,10.90490011]
[1730164526128,22.93295792,178.24,178.15,19.6463]
[1730164526129,5.6104,178.24,178.21,10.90490011]
[1730164526304,16.51430011,178.27,178.21,10.90490011]
[1730164526510,10.90490011,178.24,178.18,10.90490011]
[1730164526822,10.90490011,178.24,178.19,3.91758409]
[1730164527024,10.90490011,178.24,178.18,10.90490011]
[1730164527323,10.90490011,178.24,178.19,3.91748667]
[1730164527528,16.51550011,178.24,178.18,16.51690011]
[1730164527736,16.51550011,178.24,178.19,3.9168665]
[1730164527901,5.6106,178.24,178.2,10.90490011]
[1730164528106,16.51490011,178.26,178.21,10.90490011]
[1730164528521,5.61,178.26,178.22,10.90490011]
[1730164528823,5.61,178.26,178.21,10.90490011]
[1730164528824,16.51490011,178.26,178.21,10.90490011]
[1730164529500,5.61,178.26,178.21,16.51620011]
[1730164530106,16.51490011,178.26,178.21,16.51620011]
[1730164531314,16.51490011,178.26,178.2,10.90490011]
[1730164531516,10.90490011,178.25,178.2,10.90490011]
[1730164532226,10.90490011,178.24,178.19,16.51660011]
[1730164532525,10.90490011,178.25,178.19,16.51660011]
[1730164532917,10.90490011,178.24,178.19,5.6117]
[1730164533104,10.90490011,178.24,178.19,10.90490011]
[1730164533527,16.51520011,178.25,178.2,10.90490011]
[1730164533827,10.90490011,178.24,178.19,10.90490011]
[1730164534027,5.6103,178.25,178.2,10.90490011]
[1730164534337,5.79575994,178.27,178.24,10.90490011]
[1730164534511,70.0,178.33,178.19,14.0299]
[1730164534512,5.6075,178.33,178.25,10.90490011]
[1730164534718,5.7977334,178.29,178.25,10.90490011]
[1730164534927,5.7977334,178.29,178.26,10.90490011]
[1730164535237,11.41020944,178.33,178.28,10.90490011]
[1730164535614,22.31510955,178.33,178.27,10.90490011]
[1730164535812,10.90490011,178.32,178.27,10.90490011]
[1730164536452,5.6081,178.32,178.28,10.90490011]
[1730164537925,5.6081,178.32,178.29,10.90490011]
[1730164539214,16.51300011,178.32,178.27,10.90490011]
[1730164539531,5.6081,178.32,178.27,10.90490011]
[1730164539832,5.6081,178.32,178.28,10.90490011]
[1730164542519,10.90490011,178.37,178.31,10.90490011]
[1730164542721,10.90490011,178.37,178.32,10.90490011]
[1730164542926,16.70808693,178.37,178.32,10.90490011]
[1730164543311,22.31438693,178.37,178.32,10.90490011]
[1730164543934,22.31438693,178.37,178.27,14.0236]
[1730164543935,10.90490011,178.36,178.31,10.90490011]
[1730164544712,10.90490011,178.35,178.3,10.90490011]
[1730164544917,10.90490011,178.34,178.29,10.90490011]
[1730164545533,10.90490011,178.33,178.28,10.90490011]
[1730164546032,5.6075,178.34,178.3,10.90490011]
[1730164547234,5.6075,178.34,178.31,10.90490011]
[1730164547423,10.90490011,178.36,178.31,10.90490011]
[1730164547626,16.51150011,178.36,178.31,10.90490011]
[1730164547931,5.6066,178.36,178.32,10.90490011]
[1730164548539,10.90490011,178.35,178.29,10.90490011]
[1730164548833,10.90490011,178.35,178.28,19.6319]
[1730164548834,16.51150011,178.36,178.31,10.90490011]
[1730164549211,10.90490011,178.35,178.3,10.90490011]
[1730164549413,10.90490011,178.35,178.26,5.6097]
[1730164549615,10.90490011,178.33,178.28,10.90490011]
[1730164549831,10.90490011,178.33,178.26,5.6097]
[1730164550028,10.90490011,178.34,178.29,10.90490011]
[1730164551538,5.6075,178.33,178.29,10.90490011]
[1730164554146,5.6075,178.33,178.28,10.90490011]
[1730164554916,16.51240011,178.33,178.28,10.90490011]
[1730164555349,5.6075,178.33,178.29,10.90490011]
[1730164556641,16.51240011,178.33,178.28,10.90490011]
[1730164557014,5.6075,178.33,178.29,10.90490011]
[1730164557718,5.6075,178.33,178.3,10.90490011]
[1730164558927,16.51240011,178.33,178.28,16.51370011]
[1730164559317,10.90490011,178.32,178.26,30.53890011]
[1730164559843,10.90490011,178.29,178.24,10.90490011]
[1730164560334,5.6086,178.3,178.25,10.90490011]
[1730164560944,16.51350011,178.3,178.25,10.90490011]
[1730164561438,16.51350011,178.3,178.25,16.51490011]
[1730164562669,5.6086,178.3,178.26,10.90490011]
[1730164562945,10.90490011,178.32,178.27,10.90490011]
[1730164563124,5.6075,178.33,178.28,10.90490011]
[1730164563543,5.6075,178.33,178.29,10.90490011]
[1730164564840,16.51240011,178.33,178.28,10.90490011]
[1730164565545,10.90490011,178.31,178.26,30.53840011]
[1730164565843,5.6075,178.33,178.28,10.90490011]
[1730164566927,5.6075,178.33,178.28,16.51400011]
[1730164567630,11.42071462,178.34,178.3,10.90490011]
[1730164567844,10.90490011,178.36,178.3,10.90490011]
[1730164568845,5.6069,178.35,178.3,10.90490011]
[1730164569370,5.6069,178.35,178.31,10.90490011]
[1730164569844,5.6069,178.35,178.3,16.51330011]
[1730164571435,5.6069,178.35,178.28,14.0228]
[1730164571436,5.6069,178.35,178.31,10.90490011]
[1730164571647,5.6069,178.35,178.32,10.90490011]
[1730164571843,11.42378285,178.37,178.32,10.90490011]
[1730164572348,10.90490011,178.35,178.3,10.90490011]
[1730164572958,10.90490011,178.33,178.29,23.776884]
[1730164573152,5.6066,178.36,178.25,14.0252]
[1730164573153,10.90490011,178.32,178.25,14.0252]
[1730164573322,10.90490011,178.31,178.27,23.776884]
[1730164573528,10.90490011,178.31,178.25,24.93010011]
[1730164573734,10.90490011,178.32,178.27,10.90490011]
[1730164574138,19.6231,178.36,178.28,10.90490011]
[1730164574445,19.6231,178.36,178.23,5.56669943]
[1730164574446,10.90490011,178.34,178.29,10.90490011]
[1730164574652,10.90490011,178.35,178.29,10.90490011]
[1730164575147,10.90490011,178.33,178.29,23.776884]
[1730164575453,10.90490011,178.3,178.26,14.0244]
[1730164575632,10.90490011,178.27,178.23,3.88506049]
[1730164575827,10.90490011,178.27,178.23,9.49566049]
[1730164576751,10.90490011,178.27,178.23,23.52246049]
[1730164576951,10.90490011,178.28,178.23,34.4273606]
[1730164577145,10.90490011,178.28,178.23,30.54230011]
[1730164577342,5.6089,178.29,178.23,30.54230011]
[1730164577343,16.51380011,178.29,178.23,30.54230011]
[1730164577753,10.90490011,178.28,178.23,30.54230011]
[1730164577939,10.90490011,178.29,178.23,30.54230011]
[1730164578141,10.90490011,178.28,178.23,30.54230011]
[1730164578542,10.90490011,178.28,178.23,36.01506389]
[1730164578847,10.90490011,178.28,178.23,30.54230011]
[1730164579051,10.90490011,178.28,178.23,36.01506995]
[1730164579552,10.90490011,178.28,178.24,3.88969258]
[1730164579960,10.90490011,178.27,178.24,9.49989258]
[1730164580136,10.90490011,178.27,178.24,5.6102]
[1730164580329,10.90490011,178.27,178.24,14.97539081]
[1730164581344,10.90490011,178.27,178.23,14.0268]
[1730164581549,10.90490011,178.25,178.23,14.0268]
[1730164582036,5.6085,178.3,178.23,14.0268]
[1730164582037,10.90490011,178.26,178.23,14.0268]
[1730164582759,5.6093,178.28,178.23,14.0268]
[1730164582760,10.90490011,178.27,178.24,3.89543021]
[1730164582934,10.90490011,178.27,178.23,14.0268]
[1730164583256,10.90490011,178.27,178.24,3.89542821]
[1730164583434,10.90490011,178.27,178.23,14.0268]
[1730164583635,10.90490011,178.26,178.24,3.89649981]
[1730164583956,10.90490011,178.25,178.2,5.5669294]
[1730164584249,10.90490011,178.25,178.21,9.37134386]
[1730164584430,10.90490011,178.25,178.22,3.88986262]
[1730164584630,10.90490011,178.25,178.21,5.48148124]
[1730164584927,10.90490011,178.25,178.22,3.89088068]
[1730164585132,10.90490011,178.25,178.2,16.51620011]
[1730164585332,10.90490011,178.25,178.21,3.89087303]
[1730164585534,10.90490011,178.23,178.22,3.89087303]
[1730164585752,10.90490011,178.24,178.22,3.89087303]
[1730164585944,10.90490011,178.24,178.2,5.6113]
[1730164586148,10.90490011,178.24,178.21,3.89080089]
[1730164586357,10.90490011,178.24,178.22,3.89106712]
[1730164586547,10.90490011,178.24,178.2,11.08870375]
[1730164586746,10.90490011,178.24,178.19,24.93420011]
[1730164586747,10.90490011,178.23,178.21,3.89183833]
[1730164586940,10.90490011,178.22,178.19,14.0293]
[1730164587461,10.90490011,178.22,178.2,3.89369965]
[1730164587655,10.90490011,178.22,178.19,14.0293]
[1730164587839,10.90490011,178.21,178.2,3.89373415]
[1730164588039,10.90490011,178.22,178.2,3.89373415]
[1730164588239,10.90490011,178.22,178.17,10.90490011]
[1730164588460,10.90490011,178.22,178.18,3.89279293]
[1730164588636,16.51600011,178.22,178.19,3.89279293]
[1730164588837,16.51600011,178.22,178.2,3.89272972]
[1730164589055,16.51600011,178.22,178.17,10.90490011]
[1730164589250,16.51600011,178.22,178.18,3.89187349]
[1730164589451,5.6111,178.22,178.19,3.89187349]
[1730164589647,5.6111,178.22,178.15,14.0326]
[1730164589859,5.6111,178.22,178.16,3.89254935]
[1730164590165,5.6111,178.22,178.17,3.89254935]
[1730164590363,5.6111,178.22,178.13,15.47269392]
[1730164590670,10.90490011,178.17,178.14,3.8918241]
[1730164590847,10.90490011,178.16,178.15,3.8918241]
[1730164591461,10.90490011,178.16,178.12,5.614]
[1730164591763,10.90490011,178.16,178.13,3.89225728]
[1730164591945,10.90490011,178.17,178.14,3.89225728]
[1730164592265,5.6119,178.19,178.14,10.90490011]
[1730164592442,16.51680011,178.19,178.14,10.90490011]
[1730164593344,10.90490011,178.18,178.13,16.51850011]
[1730164593544,10.90490011,178.18,178.14,3.88949405]
[1730164593764,10.90490011,178.17,178.13,5.6136]
[1730164594065,10.90490011,178.17,178.14,3.88929439]
[1730164594270,10.90490011,178.17,178.13,5.6136]
[1730164594470,16.51720011,178.18,178.14,3.88790995]
[1730164594761,16.51720011,178.18,178.13,5.6136]
[1730164594968,10.90490011,178.17,178.14,3.88790548]
[1730164595270,10.90490011,178.17,178.14,3.88684116]
[1730164595441,10.90490011,178.18,178.12,24.94030011]
[1730164595768,10.90490011,178.18,178.13,3.88643286]
[1730164596073,5.6119,178.19,178.13,3.88643286]
[1730164596074,10.90490011,178.17,178.13,3.88643286]
[1730164596268,10.90490011,178.16,178.12,19.6495]
[1730164596445,10.90490011,178.17,178.12,23.53533981]
[1730164596867,10.90490011,178.17,178.12,34.44023992]
[1730164597069,10.90490011,178.17,178.13,3.88583981]
[1730164597247,10.90490011,178.17,178.12,30.55440011]
[1730164597659,16.51750011,178.17,178.12,19.6495]
[1730164597965,16.51750011,178.17,178.12,17.91973985]
[1730164598977,10.90490011,178.17,178.12,34.43873996]
[1730164599151,5.83175429,178.19,178.13,10.90490011]
[1730164599351,5.83175429,178.19,178.15,10.90490011]
[1730164599564,16.51630011,178.21,178.15,10.90490011]
[1730164600147,10.90490011,178.2,178.15,10.90490011]
[1730164600346,5.6114,178.21,178.13,3.88115347]
[1730164600347,10.90490011,178.18,178.14,5.6133]
[1730164601767,10.90490011,178.17,178.13,9.49485347]
[1730164602279,10.90490011,178.2,178.15,10.90490011]
[1730164603573,16.51660011,178.2,178.15,10.90490011]
[1730164604087,10.90490011,178.19,178.14,20.39935358]
[1730164604256,10.90490011,178.19,178.14,16.51820011]
[1730164604458,10.90490011,178.19,178.14,20.39605559]
[1730164604652,10.90490011,178.19,178.14,20.3961503]
[1730164604857,10.90490011,178.18,178.14,9.49125019]
[1730164605067,10.90490011,178.18,178.14,5.6133]
[1730164606682,10.90490011,178.15,178.13,3.87791482]
[1730164606857,10.90490011,178.14,178.08,3.87906274]
[1730164607058,92.4254,178.17,178.06,15.46453599]
[1730164607059,10.90490011,178.09,178.07,3.87906274]
[1730164607381,10.90490011,178.08,178.05,14.0404]
[1730164607573,10.90490011,178.07,178.05,3.88124775]
[1730164607782,10.90490011,178.07,178.04,5.6166]
[1730164608087,10.90490011,178.07,178.04,9.49784775]
[1730164608282,10.90490011,178.05,178.02,3.88124775]
[1730164608472,10.90490011,178.04,178.01,14.0434]
[1730164609074,10.90490011,178.06,178.01,14.0434]
[1730164609259,10.90490011,178.07,178.01,30.56590011]
[1730164609453,10.90490011,178.06,178.02,3.88131608]
[1730164609857,10.90490011,178.06,178.01,23.54231608]
[1730164610057,10.90490011,178.06,178.01,34.44721619]
[1730164610284,10.90490011,178.06,178.02,3.88131608]
[1730164610491,17.05956445,178.06,178.01,31.10296445]
[1730164610987,17.05956445,178.06,178.02,3.7479846]
[1730164611285,17.05956445,178.06,178.01,31.10296445]
[1730164611483,22.89482552,178.08,178.03,17.05956445]
[1730164611681,17.05956445,178.1,178.04,17.05956445]
[1730164611887,17.05956445,178.1,178.01,14.0434]
[1730164611888,22.67406445,178.11,178.05,17.05956445]
[1730164612183,17.05956445,178.11,178.06,17.05956445]
[1730164612381,22.89466814,178.12,178.07,17.05956445]
[1730164612586,22.89466814,178.12,178.07,22.67516445]
[1730164612959,17.05956445,178.11,178.07,5.6156]
[1730164613164,22.89466814,178.12,178.07,22.67516445]
[1730164613381,22.89466814,178.12,178.07,5.6156]
[1730164614062,22.67406445,178.11,178.06,14.0401]
[1730164614267,17.05956445,178.09,178.06,14.0401]
[1730164614469,17.05956445,178.09,178.06,19.6561]